bitfinex-derivatives/quotes_BTCF0:USTF0_20241116
["timestamp","ask_amount","ask_price","bid_price","bid_amount"]
[1731782340351,0.0804,91421.0,91410.0,0.054673]
[1731782340352,0.054669,91417.0,91412.0,0.00341914]
[1731782340557,0.054669,91417.0,91413.0,0.00341914]
[1731782340757,0.054669,91417.0,91414.0,0.00341914]
[1731782341055,0.054669,91417.0,91415.0,0.00341914]
[1731782341255,0.054669,91417.0,91413.0,0.05472]
[1731782341554,0.054669,91417.0,91414.0,0.00341927]
[1731782341755,0.054669,91417.0,91415.0,0.00341927]
[1731782341957,0.054669,91417.0,91416.0,0.00341927]
[1731782342759,0.054669,91417.0,91410.0,0.054673]
[1731782342960,0.054669,91417.0,91411.0,0.00341929]
[1731782343143,0.054669,91417.0,91412.0,0.00341929]
[1731782343344,0.3608,91420.0,91413.0,0.00341929]
[1731782343556,0.0804,91421.0,91415.0,0.05467]
[1731782343754,0.0804,91421.0,91405.0,0.3608]
[1731782343755,0.0804,91421.0,91417.0,0.054669]
[1731782343946,0.0804,91421.0,91418.0,0.00341929]
[1731782344255,0.0804,91421.0,91419.0,0.00341909]
[1731782344553,0.0804,91421.0,91417.0,0.054669]
[1731782344757,0.135067,91421.0,91418.0,0.0034191]
[1731782345052,0.135067,91421.0,91419.0,0.00341905]
[1731782345253,0.135067,91421.0,91418.0,0.054669]
[1731782345254,0.135067,91421.0,91420.0,0.00341905]
[1731782345854,0.135067,91421.0,91418.0,0.054669]
[1731782346052,0.135067,91421.0,91419.0,0.00341899]
[1731782346248,0.05546577,91423.0,91407.0,0.05576659]
[1731782346554,0.00164129,91423.0,91421.0,0.054667]
[1731782346763,0.00164129,91423.0,91422.0,0.03411899]
[1731782346965,0.00164129,91423.0,91422.0,0.03958914]
[1731782347264,0.13910577,91423.0,91422.0,0.00341899]
[1731782347564,0.11720729,91423.0,91422.0,0.00341899]
[1731782348062,0.19760729,91423.0,91422.0,0.00341899]
[1731782348555,0.14294129,91423.0,91422.0,0.00341899]
[1731782348758,0.08204129,91423.0,91422.0,0.00341899]
[1731782351158,0.08204129,91423.0,91415.0,0.05467]
[1731782351159,0.054667,91421.0,91415.0,0.05467]
[1731782351358,0.054667,91421.0,91416.0,0.00341918]
[1731782351565,0.054667,91421.0,91417.0,0.00341918]
[1731782351762,0.054667,91421.0,91418.0,0.00341923]
[1731782351964,0.054667,91421.0,91415.0,0.05467]
[1731782351965,0.054667,91421.0,91419.0,0.00341923]
[1731782352263,0.054667,91421.0,91420.0,0.00341923]
[1731782352667,0.054668,91420.0,91409.0,0.054674]
[1731782352959,0.054668,91420.0,91411.0,0.054673]
[1731782353160,0.054668,91420.0,91412.0,0.00889003]
[1731782353366,0.054668,91419.0,91413.0,0.00888994]
[1731782353565,0.054668,91419.0,91414.0,0.00341921]
[1731782353865,0.054668,91419.0,91415.0,0.00341921]
[1731782354164,0.054668,91419.0,91411.0,0.054673]
[1731782354371,0.054668,91419.0,91412.0,0.00341924]
[1731782354559,0.08204129,91423.0,91413.0,0.00341924]
[1731782354868,0.054669,91418.0,91409.0,0.054674]
[1731782355165,0.054669,91418.0,91410.0,0.00341929]
[1731782355353,0.054669,91418.0,91411.0,0.00341929]
[1731782355549,0.054669,91418.0,91412.0,0.00341929]
[1731782355754,0.054669,91418.0,91412.0,0.05472]
[1731782356158,0.054669,91417.0,91412.0,0.05472]
[1731782356561,0.054669,91417.0,91409.0,0.054674]
[1731782356762,0.054669,91417.0,91410.0,0.00341928]
[1731782356963,0.054669,91417.0,91411.0,0.00341928]
[1731782357170,0.08204129,91423.0,91412.0,0.00341928]
[1731782357359,0.08204129,91423.0,91409.0,0.054674]
[1731782357360,0.054671,91415.0,91413.0,0.00341928]
[1731782357565,0.054671,91415.0,91414.0,0.00341925]
[1731782357971,0.054671,91415.0,91409.0,0.054674]
[1731782358266,0.054671,91415.0,91410.0,0.00341931]
[1731782358567,0.054671,91415.0,91411.0,0.00341931]
[1731782358762,0.054671,91415.0,91412.0,0.00341931]
[1731782358952,0.054671,91415.0,91409.0,0.054674]
[1731782358953,0.054671,91415.0,91413.0,0.00341931]
[1731782359152,0.054671,91415.0,91414.0,0.00341931]
[1731782360966,0.51360551,91415.0,91414.0,0.00341931]
[1731782361265,0.51360551,91415.0,91398.0,0.3608]
[1731782361266,0.054677,91405.0,91398.0,0.41548]
[1731782361453,0.054677,91405.0,91399.0,0.00547139]
[1731782361454,0.21130991,91404.0,91399.0,0.00547139]
[1731782361659,0.0804,91404.0,91400.0,0.00547139]
[1731782361866,0.0804,91404.0,91401.0,0.00547139]
[1731782362058,0.21130991,91404.0,91402.0,0.00547144]
[1731782362266,0.21130991,91404.0,91403.0,0.00547144]
[1731782362267,0.0804,91404.0,91403.0,0.00547144]
[1731782362896,0.0804,91404.0,91399.0,0.05468]
[1731782363069,0.13098421,91403.0,91400.0,0.00547137]
[1731782363271,0.13098421,91402.0,91401.0,0.00547137]
[1731782363458,0.13098421,91402.0,91401.0,0.06015034]
[1731782364061,0.13098421,91403.0,91401.0,0.06015034]
[1731782364263,0.135077,91404.0,91402.0,0.00547134]
[1731782364459,0.135077,91404.0,91401.0,0.054679]
[1731782364460,0.135077,91404.0,91403.0,0.00547134]
[1731782367270,0.135077,91404.0,91403.0,0.19981873]
[1731782367271,0.0804,91404.0,91403.0,0.19981873]
[1731782367471,0.0804,91404.0,91403.0,0.06014934]
[1731782367684,0.0804,91404.0,91403.0,0.11486934]
[1731782368171,0.02188233,91415.0,91412.0,0.054672]
[1731782368376,0.02188233,91415.0,91414.0,0.054671]
[1731782368581,0.02188233,91415.0,91414.0,0.06014234]
[1731782370389,0.02188233,91415.0,91414.0,0.11486234]
[1731782371474,0.76551333,91415.0,91414.0,3.4e-07]
[1731782371785,0.76551333,91415.0,91406.0,0.00096]
[1731782371786,0.054675,91407.0,91406.0,0.00072]
[1731782371980,0.74810945,91407.0,91406.0,0.00072]
[1731782372174,0.74810945,91407.0,91394.0,0.0315]
[1731782372175,0.49678907,91407.0,91394.0,0.0315]
[1731782372374,0.13104849,91396.0,91394.0,0.0315]
[1731782372681,0.13104849,91395.0,91394.0,0.0315]
[1731782373077,0.13104849,91395.0,91394.0,0.03491982]
[1731782373587,0.13104849,91395.0,91394.0,0.08968097]
[1731782374182,0.4412,91398.0,91394.0,0.08968097]
[1731782374183,0.13104849,91396.0,91394.0,0.08968097]
[1731782374373,0.18573049,91396.0,91395.0,0.00341983]
[1731782374683,0.054682,91396.0,91395.0,0.05818097]
[1731782374889,0.4412,91398.0,91395.0,0.05818097]
[1731782375080,0.49586537,91398.0,91396.0,0.00341983]
[1731782375279,0.3608,91398.0,91397.0,0.00341983]
[1731782375479,0.13100141,91401.0,91397.0,0.1217528]
[1731782375688,0.08100141,91406.0,91402.0,0.054678]
[1731782375879,0.0051,91413.0,91411.0,0.054673]
[1731782376182,0.15572234,91415.0,91414.0,0.054671]
[1731782376376,0.15572234,91415.0,91414.0,0.11285197]
[1731782376377,0.10228233,91415.0,91414.0,0.11285197]
[1731782377692,0.1654519,91423.0,91414.0,0.14097945]
[1731782377987,0.00164129,91423.0,91418.0,0.3608]
[1731782378188,0.00164129,91423.0,91419.0,0.05386578]
[1731782378495,0.00164129,91423.0,91420.0,0.02256578]
[1731782378679,0.0051,91430.0,91424.0,0.054665]
[1731782378880,0.05344548,91433.0,91424.0,0.05808483]
[1731782379174,0.05344548,91433.0,91424.0,0.07722856]
[1731782379687,0.05344548,91433.0,91424.0,0.05808483]
[1731782380086,0.05344548,91433.0,91424.0,0.07722835]
[1731782380279,0.05344548,91433.0,91424.0,0.27177919]
[1731782380480,0.054661,91431.0,91424.0,0.27177919]
[1731782380881,0.054661,91431.0,91424.0,0.27177934]
[1731782381283,0.054661,91431.0,91424.0,0.0772285]
[1731782381575,0.054661,91431.0,91424.0,0.08269809]
[1731782381780,0.054661,91431.0,91424.0,0.06355442]
[1731782382691,0.02187962,91430.0,91424.0,0.06355442]
[1731782383293,0.02187962,91430.0,91424.0,0.054665]
[1731782383489,0.02187962,91430.0,91424.0,0.06355319]
[1731782384190,0.02187962,91430.0,91424.0,0.06355336]
[1731782385396,0.02187962,91430.0,91424.0,0.2581042]
[1731782386684,0.02187962,91430.0,91424.0,0.06355336]
[1731782386879,0.02187962,91430.0,91424.0,0.2581042]
[1731782387085,0.02187962,91430.0,91424.0,0.25810407]
[1731782387288,0.02187962,91430.0,91424.0,0.06355323]
[1731782387493,0.02187962,91430.0,91424.0,0.054665]
[1731782387697,0.02187962,91430.0,91424.0,0.06013474]
[1731782387898,0.02187962,91430.0,91424.0,0.06355333]
[1731782388581,0.02187962,91430.0,91424.0,0.26699235]
[1731782388792,0.054663,91428.0,91424.0,0.06355333]
[1731782388997,0.054663,91428.0,91424.0,0.06355329]
[1731782389190,0.02187962,91430.0,91424.0,0.06355329]
[1731782389387,0.054664,91426.0,91424.0,0.00888829]
[1731782389591,0.03303208,91425.0,91424.0,0.00888829]
[1731782389786,0.03303208,91425.0,91410.0,0.65805136]
[1731782389787,0.36115208,91425.0,91410.0,0.3982]
[1731782390102,0.054673,91411.0,91410.0,0.3982]
[1731782390288,0.054673,91411.0,91410.0,0.45296114]
[1731782390490,0.08036,91412.0,91410.0,0.45296114]
[1731782390886,0.495833,91412.0,91410.0,0.45296114]
[1731782391089,0.0301,91411.0,91410.0,0.45296114]
[1731782392997,0.0301,91411.0,91410.0,0.05476114]
[1731782393204,0.0628,91411.0,91410.0,0.05476114]
[1731782393990,0.1183173,91411.0,91393.0,0.19455084]
[1731782394302,0.08279848,91402.0,91394.0,0.01914925]
[1731782394488,0.11296,91401.0,91391.0,0.19455084]
[1731782394694,0.054682,91396.0,91392.0,0.01914966]
[1731782394887,0.054682,91396.0,91393.0,0.01914966]
[1731782395099,0.054682,91396.0,91394.0,0.01914966]
[1731782395406,0.054682,91396.0,91390.0,0.054685]
[1731782395699,0.054682,91396.0,91394.0,0.05286]
[1731782395897,0.054682,91396.0,91390.0,0.054685]
[1731782395898,0.054682,91396.0,91390.0,0.107545]
[1731782396102,0.054682,91396.0,91391.0,0.01914999]
[1731782396288,0.054682,91396.0,91392.0,0.01914999]
[1731782396491,0.054682,91396.0,91393.0,0.01914999]
[1731782396695,0.054682,91396.0,91394.0,0.01914999]
[1731782396890,0.054682,91396.0,91394.0,0.05286]
[1731782398209,0.0326,91401.0,91399.0,0.05468]
[1731782398506,0.05458521,91411.0,91408.0,0.054674]
[1731782398694,0.0804,91409.0,91408.0,0.054674]
[1731782399611,0.135074,91409.0,91401.0,0.054679]
[1731782399907,0.054675,91407.0,91402.0,0.00547174]
[1731782400102,0.054675,91407.0,91401.0,0.054679]
[1731782400289,0.0804,91409.0,91402.0,0.00547184]
[1731782400490,0.0804,91409.0,91391.0,0.3608]
[1731782400491,0.0804,91409.0,91405.0,0.054676]
[1731782400703,0.135075,91409.0,91405.0,0.054676]
[1731782400894,0.054675,91408.0,91405.0,0.107536]
[1731782401292,0.0804,91409.0,91406.0,0.0054712]
[1731782401507,0.0804,91409.0,91407.0,0.0054712]
[1731782401700,0.0804,91409.0,91407.0,0.05286]
[1731782401905,0.0804,91409.0,91408.0,0.00341961]
[1731782402099,0.0804,91409.0,91408.0,0.05627961]
[1731782402500,0.0804,91409.0,91408.0,0.00341961]
[1731782402701,0.0804,91409.0,91408.0,0.00889087]
[1731782402899,0.0804,91409.0,91408.0,0.00341961]
[1731782403107,0.0804,91409.0,91408.0,0.00889089]
[1731782403307,0.0804,91409.0,91407.0,0.054675]
[1731782403504,0.0804,91409.0,91408.0,0.00889079]
[1731782403804,0.0804,91409.0,91408.0,0.00889045]
[1731782404710,0.0804,91409.0,91408.0,0.06175045]
[1731782406210,0.054667,91421.0,91408.0,0.06175045]
[1731782406211,0.08279848,91424.0,91409.0,0.054674]
[1731782406509,0.08279848,91424.0,91422.0,0.054666]
[1731782406510,0.00060001,91423.0,91422.0,0.054666]
[1731782406805,0.0308,91424.0,91422.0,0.054666]
[1731782407105,0.0308,91424.0,91423.0,0.00888889]
[1731782407706,0.0308,91424.0,91423.0,0.00341858]
[1731782408014,0.0308,91424.0,91423.0,0.00888832]
[1731782408309,0.03113208,91425.0,91424.0,0.054665]
[1731782408499,0.00013208,91425.0,91424.0,0.06355319]
[1731782413315,0.00013208,91425.0,91424.0,0.0669716]
[1731782413519,0.00013208,91425.0,91424.0,0.06355319]
[1731782414216,0.02187979,91430.0,91429.0,0.054662]
[1731782414409,0.02187979,91430.0,91429.0,0.06355019]
[1731782415314,0.02196539,91430.0,91429.0,0.06355019]
[1731782417709,0.02196539,91430.0,91429.0,0.06354968]
[1731782418315,0.02196539,91430.0,91429.0,0.07243692]
[1731782418706,0.02196539,91430.0,91429.0,0.08269158]
[1731782419111,0.02196539,91430.0,91429.0,0.26698776]
[1731782419417,0.02196539,91430.0,91429.0,0.06354968]
[1731782421213,0.02196539,91430.0,91429.0,0.054662]
[1731782421412,0.02196539,91430.0,91429.0,0.06354969]
[1731782421813,0.02196539,91430.0,91429.0,0.08269194]
[1731782422011,0.02196539,91430.0,91429.0,0.06354954]
[1731782424223,8.56e-05,91430.0,91429.0,0.07385209]
[1731782425317,0.08036,91437.0,91429.0,0.01777509]
[1731782425517,0.08036,91437.0,91436.0,0.054658]
[1731782425721,0.08036,91437.0,91436.0,0.06354554]
[1731782426114,0.25861061,91447.0,91440.0,0.054655]
[1731782426419,0.08036,91443.0,91441.0,0.00888754]
[1731782426621,0.02197079,91442.0,91441.0,0.00888754]
[1731782426826,0.02197079,91442.0,91440.0,0.054655]
[1731782426827,8.583e-05,91442.0,91440.0,0.054655]
[1731782427028,8.583e-05,91442.0,91441.0,0.00888662]
[1731782429721,8.583e-05,91442.0,91441.0,0.00341793]
[1731782432426,8.583e-05,91442.0,91441.0,0.00888656]
[1731782432730,8.583e-05,91442.0,91441.0,0.00888643]
[1731782434526,8.583e-05,91442.0,91441.0,0.20343727]
[1731782435025,8.583e-05,91442.0,91441.0,0.00888643]
[1731782435934,8.583e-05,91442.0,91441.0,0.00341802]
[1731782436233,8.583e-05,91442.0,91441.0,0.00341799]
[1731782436529,8.583e-05,91442.0,91441.0,0.00888678]
[1731782436920,8.583e-05,91442.0,91441.0,0.20356659]
[1731782437120,8.583e-05,91442.0,91441.0,0.00888678]
[1731782438931,0.13099605,91442.0,91441.0,0.00888678]
[1731782439123,8.583e-05,91442.0,91441.0,0.00888678]
[1731782439319,0.08040583,91442.0,91441.0,0.00888678]
[1731782439524,8.583e-05,91442.0,91441.0,0.00888678]
[1731782446632,8.583e-05,91442.0,91441.0,0.00341799]
[1731782446832,8.583e-05,91442.0,91441.0,0.00888693]
[1731782450438,0.19070104,91442.0,91441.0,0.00888693]
[1731782450631,0.22330104,91442.0,91441.0,0.00888745]
[1731782454443,0.41994642,91442.0,91441.0,0.00888745]
[1731782455445,0.17013831,91442.0,91441.0,0.00888745]
[1731782456838,0.14160925,91442.0,91441.0,0.00888745]
[1731782457043,0.50240925,91442.0,91441.0,0.00888745]
[1731782457441,0.50240925,91442.0,91441.0,0.00888774]
[1731782460452,0.50240925,91442.0,91441.0,0.00341836]
[1731782460855,0.55667867,91442.0,91441.0,0.00341836]
[1731782461242,0.60984914,91442.0,91441.0,0.00341836]
[1731782461550,0.55557972,91442.0,91441.0,0.00341836]
[1731782462451,0.50240925,91442.0,91441.0,0.00341836]
[1731782463441,0.054655,91441.0,91440.0,0.0001047]
[1731782463743,0.054658,91436.0,91421.0,0.19463683]
[1731782463943,0.054658,91436.0,91419.0,0.00164079]
[1731782463944,0.054666,91423.0,91422.0,0.00888927]
[1731782464144,0.18925542,91423.0,91422.0,0.00888927]
[1731782464346,0.134986,91423.0,91422.0,0.00888927]
[1731782464744,0.21771879,91423.0,91422.0,0.00888927]
[1731782465346,0.21771879,91423.0,91422.0,0.00341895]
[1731782465945,0.21771879,91423.0,91422.0,0.00888946]
[1731782466149,0.21771879,91423.0,91422.0,0.00341895]
[1731782466947,0.27345994,91423.0,91422.0,0.00888947]
[1731782467966,0.27345994,91423.0,91419.0,0.00164079]
[1731782468247,0.054667,91421.0,91420.0,0.00341922]
[1731782469460,0.382827,91421.0,91420.0,0.00341922]
[1731782469962,0.382827,91421.0,91419.0,0.00164079]
[1731782470164,0.45901984,91420.0,91419.0,0.00164079]
[1731782470353,0.3813449,91420.0,91419.0,0.00164079]
[1731782470559,0.49168815,91420.0,91419.0,0.00164079]
[1731782470755,0.054673,91411.0,91410.0,9.313e-05]
[1731782470959,0.495793,91411.0,91410.0,0.06184378]
[1731782475169,0.54998245,91411.0,91410.0,0.06184378]
[1731782475554,0.41498945,91411.0,91410.0,0.06184378]
[1731782475754,0.13082252,91419.0,91410.0,0.06184378]
[1731782475954,0.02188367,91423.0,91410.0,0.06184378]
[1731782475955,0.08032,91421.0,91417.0,0.054669]
[1731782476151,0.08032,91421.0,91419.0,0.054668]
[1731782476363,0.08032,91421.0,91420.0,0.00889016]
[1731782476770,0.08032,91421.0,91420.0,0.00888944]
[1731782476954,0.134987,91421.0,91420.0,0.00888944]
[1731782479068,0.02188367,91423.0,91420.0,0.00888944]
[1731782479263,0.02188367,91423.0,91421.0,0.00888922]
[1731782479465,0.02188367,91423.0,91414.0,0.0841968]
[1731782479466,0.02188367,91423.0,91422.0,0.00888922]
[1731782480870,0.02188367,91423.0,91422.0,0.00888945]
[1731782481373,0.07654967,91423.0,91422.0,0.00888945]
[1731782482171,0.07654967,91423.0,91422.0,0.00341902]
[1731782484669,0.054672,91412.0,91410.0,9.313e-05]
[1731782484867,0.054672,91412.0,91411.0,0.06175034]
[1731782485063,0.18555124,91412.0,91411.0,0.06175034]
[1731782485575,0.054672,91412.0,91411.0,0.06175034]
[1731782486084,0.18555124,91412.0,91411.0,0.06175034]
[1731782486372,0.054672,91412.0,91411.0,0.06175034]
[1731782487775,0.054672,91412.0,91411.0,0.00889034]
[1731782488581,0.21827105,91412.0,91411.0,0.00889034]
[1731782488779,0.10785702,91412.0,91411.0,0.00889034]
[1731782489188,0.10785708,91412.0,91411.0,0.00889034]
[1731782491088,0.16148584,91412.0,91411.0,0.00889034]
[1731782491695,0.35755626,91412.0,91411.0,0.00889034]
[1731782491894,0.16148584,91412.0,91411.0,0.00889034]
[1731782492285,0.35755626,91412.0,91411.0,0.00889034]
[1731782492493,0.16148584,91412.0,91411.0,0.00889034]
[1731782492792,0.10830076,91412.0,91411.0,0.00889034]
[1731782493284,0.1626037,91412.0,91411.0,0.00889034]
[1731782493694,0.5234037,91412.0,91411.0,0.00889034]
[1731782493884,0.90479317,91412.0,91411.0,0.00889034]
[1731782494397,0.054678,91402.0,91401.0,0.00164094]
[1731782494592,0.55010094,91402.0,91401.0,0.05450094]
[1731782495092,0.58080094,91402.0,91401.0,0.05450094]
[1731782498390,0.63608559,91402.0,91401.0,0.05450094]
[1731782498595,0.76703587,91402.0,91401.0,0.05450094]
[1731782498996,0.76714608,91402.0,91401.0,0.05450094]
[1731782499702,0.6361958,91402.0,91401.0,0.05450094]
[1731782500088,0.68938882,91402.0,91401.0,0.05450094]
[1731782500585,0.6361958,91402.0,91401.0,0.05450094]
[1731782501498,0.79981766,91402.0,91401.0,0.05450094]
[1731782502791,0.6361958,91402.0,91401.0,0.05450094]
[1731782503394,0.79981766,91402.0,91401.0,0.05450094]
[1731782503698,0.6361958,91402.0,91401.0,0.05450094]
[1731782504992,0.58189286,91402.0,91401.0,0.05450094]
[1731782505196,0.47087286,91402.0,91401.0,0.05450094]
[1731782505402,0.6054958,91402.0,91401.0,0.05450094]
[1731782506100,0.55119286,91402.0,91401.0,0.05450094]
[1731782506495,0.55119286,91402.0,91401.0,0.0579209]
[1731782507107,0.55119286,91402.0,91401.0,0.05450094]
[1731782507294,0.57308178,91402.0,91401.0,0.05450094]
[1731782511507,0.70393066,91402.0,91401.0,0.05450094]
[1731782512505,0.70393066,91402.0,91392.0,0.06789684]
[1731782512506,0.054684,91393.0,91392.0,0.06789684]
[1731782512705,0.054684,91393.0,91392.0,0.07131684]
[1731782512706,0.18930694,91393.0,91392.0,0.07131684]
[1731782513407,0.60440988,91393.0,91392.0,0.07131684]
[1731782513614,0.55010694,91393.0,91392.0,0.07131684]
[1731782514316,0.55010694,91393.0,91392.0,0.12603684]
[1731782515117,0.7137288,91393.0,91392.0,0.12603684]
[1731782515612,0.55010694,91393.0,91392.0,0.12603684]
[1731782515908,0.6033014,91393.0,91392.0,0.12603693]
[1731782516108,0.65760708,91393.0,91392.0,0.12603693]
[1731782516309,0.85416603,91393.0,91392.0,0.12261684]
[1731782516614,0.65760708,91393.0,91392.0,0.12261684]
[1731782517613,0.65760708,91393.0,91379.0,0.00011887]
[1731782517614,0.60292308,91393.0,91379.0,0.00011887]
[1731782517811,0.415491,91380.0,91379.0,0.00011887]
[1731782518013,0.495811,91380.0,91379.0,0.00559187]
[1731782519116,0.65963959,91380.0,91379.0,0.00559187]
[1731782519313,0.65963959,91380.0,91379.0,0.00679187]
[1731782519631,0.65963959,91380.0,91379.0,0.00131887]
[1731782519811,0.495811,91380.0,91379.0,0.00679205]
[1731782520011,0.65963959,91380.0,91379.0,0.00679205]
[1731782521603,0.65965207,91380.0,91379.0,0.00679205]
[1731782522115,0.495811,91380.0,91379.0,0.00679205]
[1731782523221,0.55158608,91380.0,91379.0,0.00679205]
[1731782523424,0.60588902,91380.0,91379.0,0.00679205]
[1731782525416,0.60588902,91380.0,91379.0,0.00679186]
[1731782528708,0.60588902,91380.0,91379.0,0.00679195]
[1731782529716,0.60588902,91380.0,91379.0,0.01021262]
[1731782531505,0.52556902,91380.0,91379.0,0.01021262]
[1731782531708,0.44112,91380.0,91379.0,0.01021262]
[1731782532016,0.44112,91380.0,91379.0,0.01021214]
[1731782533913,0.495811,91380.0,91379.0,0.01021214]
[1731782534724,0.05336469,91381.0,91379.0,0.37101214]
[1731782534725,0.07525789,91381.0,91379.0,0.37101214]
[1731782534907,0.3608,91389.0,91380.0,0.41101712]
[1731782535222,0.0051,91397.0,91384.0,0.26102356]
[1731782535418,0.415481,91398.0,91396.0,0.054682]
[1731782535610,0.47045321,91398.0,91397.0,0.07339327]
[1731782537525,0.47045321,91398.0,91397.0,0.07459327]
[1731782539413,0.47045321,91398.0,91397.0,0.0745913]
[1731782540125,0.10965321,91398.0,91397.0,0.0745913]
[1731782540419,0.054681,91398.0,91397.0,0.0745913]
[1731782540721,0.18562579,91398.0,91397.0,0.0745913]
[1731782540919,0.13094479,91398.0,91397.0,0.12889424]
[1731782541125,0.13094479,91401.0,91400.0,0.054679]
[1731782541315,0.13094479,91401.0,91400.0,0.0647703]
[1731782541511,0.415479,91401.0,91400.0,0.0100913]
[1731782541714,0.415479,91401.0,91400.0,0.00461973]
[1731782541922,0.49937118,91401.0,91400.0,0.00341973]
[1731782542424,0.49937118,91401.0,91383.0,0.00146668]
[1731782542425,0.054685,91391.0,91383.0,0.00146668]
[1731782542622,0.054685,91391.0,91382.0,0.031]
[1731782542623,0.60437088,91391.0,91390.0,0.40367209]
[1731782542923,0.76802557,91391.0,91390.0,0.40367209]
[1731782543424,0.76802557,91391.0,91390.0,0.40487209]
[1731782544320,0.71372263,91391.0,91390.0,0.40487209]
[1731782545225,0.71372263,91391.0,91390.0,0.3994]
[1731782545226,0.55006794,91391.0,91390.0,0.3994]
[1731782545730,0.60437088,91391.0,91390.0,0.0012]
[1731782546025,0.73530743,91391.0,91390.0,0.0012]
[1731782546332,0.73530743,91391.0,91379.0,0.00011887]
[1731782546333,0.054691,91380.0,91379.0,0.00011887]
[1731782546513,0.054691,91380.0,91379.0,0.00559172]
[1731782546514,0.18931394,91380.0,91379.0,0.00559172]
[1731782547521,0.18931394,91380.0,91379.0,0.06031172]
[1731782549123,0.3608,91382.0,91379.0,0.06031183]
[1731782549327,0.08032,91381.0,91380.0,0.00547296]
[1731782549630,0.08032,91381.0,91380.0,0.06019296]
[1731782550814,0.41566295,91382.0,91381.0,0.054691]
[1731782551017,0.3608,91382.0,91381.0,0.06016396]
[1731782551218,0.3608,91382.0,91381.0,0.11488396]
[1731782552121,0.08032,91388.0,91387.0,0.054687]
[1731782552319,0.054686,91390.0,91387.0,0.11487996]
[1731782552623,0.054686,91390.0,91389.0,0.054686]
[1731782552820,0.054686,91390.0,91389.0,0.11487815]
[1731782553026,0.054686,91390.0,91389.0,0.06019215]
[1731782554435,0.054686,91390.0,91389.0,0.06361225]
[1731782556424,0.054686,91390.0,91389.0,0.06361212]
[1731782556825,0.054686,91390.0,91389.0,0.0581401]
[1731782557026,0.054686,91390.0,91389.0,0.06361212]
[1731782557833,0.054686,91390.0,91389.0,0.0581401]
[1731782558128,0.054686,91390.0,91389.0,0.06361212]
[1731782559830,0.054686,91390.0,91389.0,0.06361203]
[1731782559831,0.13746295,91390.0,91389.0,0.06361203]
[1731782560034,0.19065781,91390.0,91389.0,0.00824001]
[1731782560334,0.19065781,91390.0,91389.0,0.00482]
[1731782560531,0.38715451,91390.0,91389.0,0.00824039]
[1731782560830,0.19065781,91390.0,91389.0,0.00482]
[1731782561036,0.19065781,91390.0,91389.0,0.00061175]
[1731782563935,0.19066171,91390.0,91389.0,0.00061175]
[1731782564136,0.10788476,91390.0,91389.0,0.00061175]
[1731782564435,0.10788476,91390.0,91389.0,0.00950466]
[1731782567037,0.10788476,91390.0,91389.0,0.0040321]
[1731782567241,0.054691,91380.0,91371.0,0.00146673]
[1731782567536,0.27094937,91380.0,91379.0,0.00559174]
[1731782568133,0.21774795,91380.0,91379.0,0.00559174]
[1731782568748,0.21774795,91380.0,91379.0,0.06034569]
[1731782569145,0.21774795,91380.0,91379.0,0.05487282]
[1731782569333,0.21774795,91380.0,91379.0,0.06034583]
[1731782569944,0.21774795,91380.0,91379.0,0.05487282]
[1731782570244,0.21774795,91380.0,91379.0,0.06034582]
[1731782571337,0.24854795,91380.0,91379.0,0.05487282]
[1731782571537,0.37959,91380.0,91379.0,0.05487282]
[1731782572332,0.43456764,91380.0,91379.0,0.05487282]
[1731782572738,0.30352559,91380.0,91379.0,0.05487282]
[1731782574836,0.2750916,91380.0,91379.0,0.05487282]
[1731782575140,0.32829509,91380.0,91379.0,0.05487282]
[1731782577855,0.29749509,91380.0,91379.0,0.05487282]
[1731782578045,0.18846113,91380.0,91379.0,0.05487282]
[1731782579137,0.10818113,91380.0,91379.0,0.05829337]
[1731782579454,0.10818113,91380.0,91379.0,0.06376623]
[1731782579455,0.13525764,91380.0,91379.0,0.06376623]
[1731782579639,0.05497764,91380.0,91379.0,0.06376623]
[1731782579840,0.08028,91382.0,91379.0,0.06376623]
[1731782580051,0.13497,91382.0,91380.0,0.00889341]
[1731782580238,0.13497,91382.0,91381.0,0.00889341]
[1731782580446,0.13497,91382.0,91381.0,0.06364736]
[1731782580648,0.13497,91382.0,91381.0,0.05475395]
[1731782580852,0.13497,91382.0,91381.0,0.06364692]
[1731782582451,0.08028,91382.0,91381.0,0.06364692]
[1731782582744,0.40497778,91383.0,91381.0,0.06364692]
[1731782582745,0.00056001,91383.0,91381.0,0.11833792]
[1731782582949,0.00056001,91383.0,91382.0,0.03929297]
[1731782582950,0.13106796,91383.0,91382.0,0.03929297]
[1731782583142,0.054688,91386.0,91382.0,0.03929297]
[1731782583143,0.054688,91386.0,91382.0,0.09404692]
[1731782583342,0.054688,91386.0,91384.0,0.19467844]
[1731782583552,0.054688,91386.0,91385.0,0.00889297]
[1731782583855,0.2070705,91386.0,91385.0,0.06364692]
[1731782585551,0.37092435,91386.0,91385.0,0.06364692]
[1731782585945,0.2070705,91386.0,91385.0,0.05817455]
[1731782586143,0.2070705,91386.0,91385.0,0.0691205]
[1731782586548,0.37092435,91386.0,91385.0,0.06364752]
[1731782586759,0.34504994,91386.0,91385.0,0.06364752]
[1731782587958,0.3451197,91386.0,91385.0,0.06364752]
[1731782588145,0.18119609,91386.0,91385.0,0.06364752]
[1731782588344,0.3451198,91386.0,91385.0,0.06364752]
[1731782588556,0.23439863,91386.0,91385.0,0.06364752]
[1731782589053,0.23439846,91386.0,91385.0,0.06364752]
[1731782589251,0.23439846,91386.0,91385.0,0.06364754]
[1731782589559,0.2343986,91386.0,91385.0,0.06364754]
[1731782590254,0.38023567,91386.0,91385.0,0.06364754]
[1731782591159,0.38023567,91386.0,91385.0,0.00852643]
[1731782591348,0.37886957,91386.0,91385.0,0.00852643]
[1731782591549,0.73966957,91386.0,91385.0,0.00852643]
[1731782592749,0.73966957,91386.0,91385.0,0.05985975]
[1731782592952,0.73966957,91386.0,91385.0,0.06328039]
[1731782594771,0.59519899,91386.0,91385.0,0.05817459]
[1731782597459,0.70601024,91386.0,91385.0,0.05817459]
[1731782597856,0.59519867,91386.0,91385.0,0.05817459]
[1731782599669,0.59519867,91386.0,91385.0,0.05817457]
[1731782600964,0.59519867,91386.0,91385.0,0.06364755]
[1731782601460,0.59519867,91386.0,91385.0,0.06364754]
[1731782601765,0.59262716,91386.0,91385.0,0.05817458]
[1731782602152,0.67543867,91386.0,91385.0,0.05817458]
[1731782602352,0.59519867,91386.0,91385.0,0.05817458]
[1731782602564,0.67543867,91386.0,91385.0,0.05817458]
[1731782602863,0.62223609,91386.0,91385.0,0.05817458]
[1731782603469,0.67543928,91386.0,91385.0,0.05817458]
[1731782603852,0.62223609,91386.0,91385.0,0.05817458]